bitfinex-derivatives/quotes_BTCF0:USTF0_20250127
["timestamp","ask_amount","ask_price","bid_price","bid_amount"]
[1737942276664,0.45372941,101750.0,101740.0,0.557486]
[1737942277264,0.45172941,101750.0,101740.0,0.557486]
[1737942277456,0.45172941,101750.0,101740.0,0.3608]
[1737942277658,0.196686,101740.0,101730.0,0.00014749]
[1737942277868,0.28956717,101740.0,101730.0,0.00014749]
[1737942278064,0.28956717,101740.0,101730.0,0.36094749]
[1737942278271,0.28956717,101740.0,101730.0,0.00114749]
[1737942279263,0.28956717,101740.0,101730.0,0.55865249]
[1737942279665,0.196686,101740.0,101730.0,0.55865249]
[1737942279866,0.35385124,101750.0,101730.0,0.45482866]
[1737942280071,0.44673241,101750.0,101740.0,0.557486]
[1737942280763,0.44173399,101750.0,101740.0,0.557486]
[1737942281471,0.44673399,101750.0,101740.0,0.557486]
[1737942281672,0.44773399,101750.0,101740.0,0.557486]
[1737942283368,0.44873399,101750.0,101740.0,0.557486]
[1737942286178,0.44873399,101750.0,101740.0,0.3608]
[1737942286781,0.196686,101740.0,101730.0,0.55764349]
[1737942286981,0.28956717,101740.0,101730.0,0.55764349]
[1737942288181,0.28956717,101740.0,101730.0,0.55864349]
[1737942291283,0.37782693,101740.0,101730.0,0.55864349]
[1737942292485,0.37782693,101740.0,101730.0,0.36194749]
[1737942292779,0.37782693,101740.0,101730.0,0.55865249]
[1737942293582,0.37782693,101740.0,101730.0,0.36194749]
[1737942294174,0.28956717,101740.0,101730.0,0.36194749]
[1737942297085,0.46614363,101740.0,101730.0,0.36194749]
[1737942298185,0.46614363,101740.0,101730.0,0.55865249]
[1737942299084,0.37326246,101740.0,101730.0,0.55865249]
[1737942299282,0.17657646,101740.0,101730.0,0.55865249]
[1737942300192,0.46614363,101740.0,101730.0,0.55865249]
[1737942300889,0.37326246,101740.0,101730.0,0.55865249]
[1737942301085,0.46614363,101740.0,101730.0,0.55865249]
[1737942301285,0.46614363,101740.0,101730.0,0.36194749]
[1737942302191,0.46614363,101740.0,101730.0,0.55865249]
[1737942302392,0.46614363,101740.0,101730.0,0.36194749]
[1737942302787,0.5590248,101740.0,101730.0,0.00114749]
[1737942302989,0.5590248,101740.0,101710.0,0.29363277]
[1737942302990,0.196724,101720.0,101710.0,0.29363277]
[1737942303290,0.196724,101720.0,101710.0,0.85117677]
[1737942303481,0.28960517,101720.0,101710.0,0.85116677]
[1737942304292,0.29060517,101720.0,101710.0,0.85216677]
[1737942304689,0.29060517,101720.0,101710.0,0.558534]
[1737942304885,0.29060517,101720.0,101710.0,0.3618]
[1737942305287,0.29060517,101720.0,101710.0,0.3638]
[1737942306294,0.29060517,101720.0,101710.0,0.560544]
[1737942307592,0.28560675,101720.0,101710.0,0.560544]
[1737942307792,0.28560675,101720.0,101710.0,0.65342517]
[1737942307793,0.001,101720.0,101710.0,0.65342517]
[1737942307994,0.17672395,101730.0,101720.0,0.196724]
[1737942308199,0.37342895,101730.0,101720.0,0.557524]
[1737942308502,0.46631012,101730.0,101720.0,0.557524]
[1737942308894,0.46631012,101730.0,101720.0,0.3608]
[1737942309096,0.196724,101720.0,101710.0,0.560532]
[1737942309400,0.09288117,101720.0,101700.0,0.879559]
[1737942309702,0.28962517,101710.0,101700.0,0.879559]
[1737942309905,0.37400512,101730.0,101700.0,0.77568117]
[1737942310203,0.46631512,101730.0,101720.0,0.918324]
[1737942310390,0.37343395,101730.0,101720.0,0.918324]
[1737942310590,0.00989038,101740.0,101720.0,2.31448117]
[1737942310798,0.196669,101750.0,101740.0,0.196686]
[1737942311094,0.20600587,101760.0,101750.0,0.196666]
[1737942311292,0.40265287,101760.0,101750.0,0.557466]
[1737942311495,0.196686,101740.0,101730.0,0.631001]
[1737942311700,0.28956717,101740.0,101730.0,0.47734624]
[1737942312011,0.28956717,101740.0,101730.0,0.4343]
[1737942312194,0.39909766,101750.0,101740.0,0.196686]
[1737942312394,0.38495641,101750.0,101740.0,0.557486]
[1737942312705,0.197686,101740.0,101730.0,0.633002]
[1737942312905,0.29056717,101740.0,101730.0,0.633002]
[1737942313102,0.65196234,101740.0,101720.0,0.00162192]
[1737942313399,0.196744,101710.0,101700.0,0.729459]
[1737942313703,0.28962517,101710.0,101700.0,0.729459]
[1737942313905,0.28962517,101710.0,101700.0,0.890959]
[1737942314901,0.001,101710.0,101700.0,0.890959]
[1737942315802,0.20684947,101710.0,101700.0,0.890959]
[1737942316203,0.20684947,101710.0,101700.0,0.93700429]
[1737942316594,0.08394947,101710.0,101700.0,0.93700429]
[1737942316796,0.14718283,101720.0,101710.0,0.196744]
[1737942316997,0.14718283,101720.0,101710.0,0.557544]
[1737942317299,0.34390683,101720.0,101710.0,0.557544]
[1737942317496,0.436788,101720.0,101710.0,0.557544]
[1737942318101,0.34490683,101720.0,101710.0,0.557544]
[1737942318500,0.34490683,101720.0,101710.0,0.559544]
[1737942319106,0.19787149,101720.0,101710.0,0.559544]
[1737942319307,0.00114749,101720.0,101710.0,0.559544]
[1737942320301,0.00114749,101720.0,101710.0,0.56963032]
[1737942321000,0.29075266,101720.0,101710.0,0.56963032]
[1737942322100,0.09402866,101720.0,101710.0,0.56963032]
[1737942322708,0.09402866,101720.0,101710.0,0.559544]
[1737942326409,0.31761651,101730.0,101710.0,0.559544]
[1737942326410,0.14703534,101730.0,101720.0,0.196725]
[1737942326723,0.14703534,101730.0,101720.0,0.557525]
[1737942326918,0.14703534,101730.0,101720.0,2.057525]
[1737942327306,0.23991651,101730.0,101720.0,0.557525]
[1737942328013,0.23991651,101730.0,101720.0,0.558525]
[1737942328619,0.51096853,101730.0,101720.0,0.197725]
[1737942329015,0.61532853,101730.0,101720.0,0.197725]
[1737942329208,0.51096853,101730.0,101720.0,0.197725]
[1737942329517,0.52244736,101730.0,101720.0,0.197725]
[1737942329711,0.39394617,101730.0,101720.0,0.197725]
[1737942330019,0.19724117,101730.0,101720.0,0.558525]
[1737942330407,0.20712038,101730.0,101720.0,0.558525]
[1737942331105,0.10276038,101730.0,101720.0,0.558525]
[1737942333011,0.29946538,101730.0,101720.0,0.558525]
[1737942334914,0.39234655,101730.0,101720.0,0.001]
[1737942335117,0.29946538,101730.0,101720.0,0.001]
[1737942335313,0.66026538,101730.0,101720.0,0.001]
[1737942335510,0.29946538,101730.0,101720.0,0.3618]
[1737942336118,0.39234655,101730.0,101720.0,0.3618]
[1737942336310,0.29946538,101730.0,101720.0,0.3618]
[1737942336515,0.29946538,101730.0,101720.0,0.558525]
[1737942337018,0.47604085,101730.0,101720.0,0.558525]
[1737942337412,0.56892202,101730.0,101720.0,0.558525]
[1737942337619,0.92972202,101730.0,101720.0,0.001]
[1737942337819,0.73301702,101730.0,101710.0,0.00014749]
[1737942338120,0.65040617,101720.0,101710.0,0.00014749]
[1737942339414,0.65140617,101720.0,101710.0,0.00614749]
[1737942339616,0.65140617,101720.0,101710.0,0.00814749]
[1737942341025,0.65140617,101720.0,101710.0,0.00614749]
[1737942341220,0.82798164,101720.0,101710.0,0.00714749]
[1737942342320,0.049186,101710.0,101680.0,0.23528162]
[1737942342517,0.65046417,101690.0,101680.0,0.23528162]
[1737942344023,0.75478417,101690.0,101680.0,0.23528162]
[1737942344222,0.75478417,101690.0,101680.0,0.24128162]
[1737942344726,0.75578417,101690.0,101680.0,0.24128162]
[1737942345028,0.75578417,101690.0,101680.0,0.23728162]
[1737942346028,0.29066417,101690.0,101680.0,0.43408362]
[1737942346228,0.39498417,101690.0,101680.0,0.43408362]
[1737942346436,0.57155964,101690.0,101680.0,0.198802]
[1737942347232,0.57155964,101690.0,101680.0,0.002]
[1737942347619,0.46723964,101690.0,101680.0,0.002]
[1737942348125,0.57155964,101690.0,101680.0,0.002]
[1737942348631,0.46723964,101690.0,101680.0,0.002]
[1737942348822,0.58149679,101690.0,101680.0,0.002]
[1737942349831,0.40492132,101690.0,101680.0,0.002]
[1737942350030,0.76572132,101690.0,101680.0,0.002]
[1737942350216,0.196822,101670.0,101660.0,0.636936]
[1737942350421,0.28970317,101670.0,101660.0,0.636936]
[1737942351425,0.29070317,101670.0,101660.0,0.4451]
[1737942352825,0.38358434,101670.0,101660.0,0.005]
[1737942353024,0.46608434,101670.0,101660.0,0.005]
[1737942353422,0.46608434,101670.0,101660.0,0.02038209]
[1737942355424,0.82688434,101670.0,101660.0,0.02038209]
[1737942355932,0.196841,101660.0,101650.0,0.3608]
[1737942356133,0.45368117,101660.0,101640.0,0.5248]
[1737942356332,0.39406117,101650.0,101640.0,0.5248]
[1737942357734,0.39506117,101650.0,101640.0,0.5248]
[1737942358234,0.39506117,101650.0,101640.0,0.5298]
[1737942359935,0.19786,101650.0,101640.0,0.72668]
[1737942360538,0.29074117,101650.0,101640.0,0.72668]
[1737942360836,0.38362234,101650.0,101640.0,0.5298]
[1737942361030,0.29074117,101650.0,101640.0,0.3658]
[1737942363541,0.29074117,101650.0,101640.0,0.56268]
[1737942363732,0.001,101650.0,101640.0,0.56268]
[1737942364841,0.001,101650.0,101640.0,0.65556117]
[1737942365040,0.00014749,101660.0,101650.0,0.19686]
[1737942365245,0.09302866,101660.0,101650.0,0.55766]
[1737942365839,0.28986966,101660.0,101650.0,0.55766]
[1737942366431,0.28986966,101660.0,101650.0,0.56066]
[1737942366843,0.28986966,101660.0,101650.0,0.003]
[1737942367035,0.29086966,101660.0,101650.0,0.003]
[1737942367740,0.72666966,101660.0,101650.0,0.003]
[1737942367937,0.81955083,101660.0,101650.0,0.003]
[1737942368126,0.72666966,101660.0,101650.0,0.003]
[1737942369339,0.81955083,101660.0,101650.0,0.003]
[1737942369532,0.38264234,101640.0,101630.0,0.1623]
[1737942369728,0.38264234,101640.0,101630.0,0.0805]
[1737942369934,0.196899,101630.0,101620.0,0.635312]
[1737942370135,0.39406017,101630.0,101620.0,0.635312]
[1737942370638,0.39406017,101630.0,101620.0,0.4384]
[1737942370943,0.196919,101620.0,101610.0,0.31238162]
[1737942371140,0.36600017,101620.0,101610.0,0.31238162]
[1737942371732,0.45888134,101620.0,101610.0,0.32777157]
[1737942371936,0.36600017,101620.0,101610.0,0.32777157]
[1737942372241,0.81968134,101620.0,101610.0,0.25067157]
[1737942372450,0.90008134,101620.0,101610.0,0.24292741]
[1737942372835,0.90008134,101620.0,101600.0,0.75443277]
[1737942372836,0.80744234,101620.0,101600.0,0.75443277]
[1737942373041,0.38270034,101610.0,101600.0,0.75443277]
[1737942373437,0.38270034,101610.0,101600.0,0.76967687]
[1737942374345,0.38370034,101610.0,101600.0,0.4770441]
[1737942374943,0.38370034,101610.0,101600.0,0.1162441]
[1737942375137,0.38370034,101610.0,101600.0,0.4770441]
[1737942375735,0.001,101610.0,101600.0,0.67398389]
[1737942375938,0.29081917,101610.0,101600.0,0.47702689]
[1737942376138,0.29081917,101610.0,101600.0,0.67398389]
[1737942376339,0.09388117,101610.0,101600.0,0.67398389]
[1737942376538,0.001,101610.0,101600.0,0.67398389]
[1737942376742,0.001,101610.0,101600.0,0.76686506]
[1737942376945,0.14640196,101620.0,101610.0,0.196938]
[1737942377147,0.17657547,101630.0,101610.0,0.196938]
[1737942377148,0.17657547,101630.0,101620.0,0.196918]
[1737942377356,0.20011748,101660.0,101630.0,0.049224]
[1737942377655,0.21001028,101660.0,101650.0,0.55766]
[1737942377954,0.40685128,101660.0,101650.0,0.01522689]
[1737942378152,0.82887245,101660.0,101650.0,0.01522689]
[1737942378450,0.19686,101650.0,101640.0,0.00014749]
[1737942378651,0.39786117,101650.0,101640.0,0.00014749]
[1737942379547,0.75866117,101650.0,101640.0,0.00014749]
[1737942379753,0.85154234,101650.0,101640.0,0.00014749]
[1737942380255,0.85100252,101650.0,101640.0,0.00014749]
[1737942380840,0.85100252,101650.0,101640.0,0.00214749]
[1737942381047,0.196918,101620.0,101610.0,0.1565]
[1737942381254,0.28979917,101620.0,101610.0,0.0791]
[1737942382143,0.196938,101610.0,101600.0,0.73483017]
[1737942382340,0.28981917,101610.0,101600.0,0.53787617]
[1737942382545,0.28981917,101610.0,101600.0,0.10147617]
[1737942382546,0.27323646,101610.0,101600.0,0.10147617]
[1737942383643,0.27323646,101610.0,101600.0,0.29843317]
[1737942383845,0.27423646,101610.0,101600.0,0.30743317]
[1737942384550,0.27423646,101610.0,101600.0,0.30843317]
[1737942385055,0.27423646,101610.0,101600.0,0.32382368]
[1737942385744,0.001,101610.0,101600.0,0.68462368]
[1737942386347,0.001,101610.0,101600.0,0.68362368]
[1737942386555,0.001,101610.0,101600.0,0.72671244]
[1737942387357,0.001,101610.0,101600.0,0.81959361]
[1737942387655,0.11681569,101620.0,101610.0,0.196938]
[1737942387853,0.11681569,101620.0,101610.0,0.557738]
[1737942388164,0.20600587,101650.0,101620.0,0.049227]
[1737942388358,0.20600587,101650.0,101640.0,0.3608]
[1737942388546,0.20600587,101650.0,101640.0,0.55768]
[1737942389151,0.19688,101640.0,101630.0,0.635194]
[1737942389353,0.18576234,101640.0,101630.0,0.00014749]
[1737942389556,0.28976117,101640.0,101630.0,0.02476674]
[1737942389757,0.65056117,101640.0,101630.0,0.02476674]
[1737942390054,0.89634234,101640.0,101630.0,0.02476674]
[1737942390558,0.85014136,101640.0,101630.0,0.00014749]
[1737942390856,0.85014136,101640.0,101630.0,0.00414749]
[1737942391059,0.98970272,101640.0,101630.0,0.00414749]
[1737942391356,0.196899,101630.0,101620.0,0.17186941]
[1737942391659,0.80630036,101630.0,101620.0,0.17186941]
[1737942392464,0.80576054,101630.0,101620.0,0.18726064]
[1737942392657,0.80576054,101630.0,101620.0,0.18826064]
[1737942392959,0.80576054,101630.0,101620.0,0.19426064]
[1737942393957,0.80576054,101630.0,101620.0,0.02239123]
[1737942398658,0.98102064,101630.0,101620.0,0.02239123]
[1737942401360,0.98102064,101630.0,101600.0,0.10147617]
[1737942401361,0.196938,101610.0,101600.0,0.10147617]
[1737942401562,1.05809936,101610.0,101600.0,0.1]
[1737942402063,1.26989936,101610.0,101600.0,0.1]
[1737942402669,0.7216,101610.0,101600.0,0.299958]
[1737942402863,1.05809936,101610.0,101600.0,0.107]
[1737942403369,1.05809936,101610.0,101600.0,0.105]
[1737942403769,1.05809936,101610.0,101600.0,0.12027951]
[1737942404469,1.05809936,101610.0,101600.0,0.1202778]
[1737942404868,0.918538,101610.0,101600.0,0.3172358]
[1737942405062,1.05809936,101610.0,101600.0,0.3172358]
[1737942405466,1.05809936,101610.0,101600.0,0.3856358]
[1737942406061,1.05809936,101610.0,101600.0,0.1886778]
[1737942406269,1.0678474,101610.0,101600.0,0.1886778]
[1737942407070,0.50050885,101620.0,101600.0,0.1886778]
[1737942407371,0.13956136,101610.0,101600.0,0.4547328]
[1737942407670,0.13956136,101610.0,101600.0,0.2577778]
[1737942407671,0.69729936,101610.0,101600.0,0.2577778]
[1737942408177,0.69729936,101610.0,101600.0,0.25789219]
[1737942408476,0.00014749,101620.0,101610.0,0.196938]
[1737942408666,0.87252746,101630.0,101610.0,0.28173019]
[1737942409174,0.3608,101620.0,101610.0,0.28173019]
[1737942409369,0.69728036,101620.0,101610.0,0.08479219]
[1737942409571,0.80424036,101620.0,101610.0,0.01539219]
[1737942409773,1.01334036,101620.0,101610.0,0.01539219]
[1737942409963,1.01334036,101620.0,101610.0,0.01739219]
[1737942410571,1.01334036,101620.0,101610.0,0.01539219]
[1737942410775,1.01334036,101620.0,101610.0,0.01739219]
[1737942411978,1.01334036,101620.0,101610.0,0.01733648]
[1737942413485,1.01334036,101620.0,101610.0,0.03272927]
[1737942413876,1.01290036,101620.0,101610.0,0.03272927]
[1737942414986,1.33429888,101620.0,101610.0,0.03272927]
[1737942416276,1.33429888,101620.0,101610.0,0.05735928]
[1737942417190,1.22777888,101620.0,101610.0,0.05735928]
[1737942417389,1.33557888,101620.0,101610.0,0.03272927]
[1737942418497,1.18944046,101620.0,101610.0,0.0250367]
[1737942418690,0.196938,101610.0,101600.0,0.07511079]
[1737942418991,0.69729936,101610.0,101600.0,0.07511079]
[1737942419294,0.69729936,101610.0,101600.0,0.09974287]
[1737942420396,0.69729936,101610.0,101600.0,0.10474287]
[1737942420989,0.80497936,101610.0,101600.0,0.10574287]
[1737942421990,0.80497936,101610.0,101600.0,0.08111079]
[1737942422482,0.81499982,101610.0,101600.0,0.08111079]
[1737942422684,0.86163892,101610.0,101600.0,0.08111079]
[1737942425202,0.66085869,101610.0,101600.0,0.08111079]
[1737942425396,0.76921869,101610.0,101600.0,0.08111079]
[1737942425601,0.86231892,101610.0,101600.0,0.08111079]
[1737942425991,0.76921869,101610.0,101600.0,0.08111079]
[1737942426190,0.76949869,101610.0,101600.0,0.08111079]
[1737942427294,1.0381854,101610.0,101600.0,0.08111079]
[1737942428988,0.196996,101580.0,101570.0,0.00147663]
[1737942429299,1.01169623,101580.0,101570.0,0.00147663]
[1737942429498,0.81470023,101580.0,101570.0,0.00147663]
[1737942429698,0.7216,101580.0,101570.0,0.19849263]
[1737942430100,0.7216,101580.0,101570.0,0.49849263]
[1737942430303,0.7226,101580.0,101570.0,0.50649263]
[1737942430599,0.7226,101580.0,101570.0,2.02188794]
[1737942430797,0.7226,101580.0,101570.0,0.22188794]
[1737942431000,0.81570023,101580.0,101570.0,0.22588794]
[1737942431197,0.90880046,101580.0,101570.0,0.24128333]
[1737942431399,1.10579646,101580.0,101570.0,0.04426733]
[1737942431596,1.01269623,101580.0,101570.0,0.04426733]
[1737942431791,1.10579646,101580.0,101570.0,0.04426733]
[1737942431999,1.01269623,101580.0,101570.0,0.26391754]
[1737942432310,1.01169623,101580.0,101570.0,0.25991754]
[1737942432491,1.01169623,101580.0,101570.0,0.06290304]
[1737942432696,1.10479646,101580.0,101570.0,0.06290304]
[1737942433997,1.01169623,101580.0,101570.0,0.06290304]
[1737942434192,1.10479646,101580.0,101570.0,0.06290304]
[1737942434399,1.10479646,101580.0,101570.0,0.03726883]
[1737942434596,1.11443427,101580.0,101570.0,0.03726883]
[1737942435911,1.11443427,101580.0,101570.0,0.03727002]
[1737942436209,0.82433804,101580.0,101570.0,0.21888802]
[1737942436608,0.82433804,101580.0,101570.0,0.23428506]
[1737942438711,0.82433804,101580.0,101570.0,0.2342842]
[1737942439013,0.82433804,101580.0,101570.0,0.3010842]
[1737942439410,0.91202048,101580.0,101570.0,0.28568881]
[1737942439615,0.80928244,101580.0,101570.0,0.35588881]
[1737942439812,1.09937867,101580.0,101570.0,0.22507281]
[1737942440311,1.09937867,101580.0,101570.0,0.42208881]
[1737942440312,0.90238267,101580.0,101570.0,0.42208881]
[1737942440698,0.90238267,101580.0,101570.0,0.42208938]
[1737942441911,0.80928244,101580.0,101570.0,0.42208938]
[1737942442219,0.90238267,101580.0,101570.0,0.22507338]
[1737942442510,0.80928244,101580.0,101570.0,0.42208938]
[1737942443315,0.80928244,101580.0,101570.0,0.51518961]
[1737942443707,0.80928244,101580.0,101570.0,0.42208938]
[1737942444215,0.80928244,101580.0,101570.0,0.43200553]
[1737942444603,0.08768244,101580.0,101570.0,0.82510435]
[1737942444802,0.56680587,101600.0,101590.0,0.196977]
[1737942445015,0.8568641,101600.0,101590.0,0.01539534]
[1737942445211,1.0628641,101600.0,101590.0,0.01539534]
[1737942445520,0.76376387,101600.0,101590.0,0.01539534]
[1737942445808,0.8568641,101600.0,101590.0,0.01539534]
[1737942446010,0.8578641,101600.0,101590.0,0.04002824]
[1737942446205,0.8598641,101600.0,101590.0,0.04002824]
[1737942446404,0.65385823,101600.0,101590.0,0.04002824]
[1737942447318,0.65385823,101600.0,101590.0,0.05542446]
[1737942448010,0.65385823,101600.0,101590.0,0.03079156]
[1737942448211,0.196977,101590.0,101580.0,0.00014749]
[1737942448509,0.197016,101570.0,101560.0,0.23561658]
[1737942448710,1.12231623,101570.0,101560.0,0.23561658]
[1737942450009,1.12231623,101570.0,101560.0,0.23961658]
[1737942451117,1.12231623,101570.0,101560.0,0.005]
[1737942451515,0.197035,101560.0,101550.0,0.23561658]
[1737942451818,0.94413546,101560.0,101550.0,0.23561658]
[1737942452609,0.94513546,101560.0,101550.0,0.23961658]
[1737942452814,0.85203523,101560.0,101550.0,0.24061658]
[1737942453316,0.86198309,101560.0,101550.0,0.24061658]
[1737942453620,0.01094786,101560.0,101550.0,0.43767158]
[1737942453919,0.01094786,101560.0,101550.0,0.56987158]
[1737942454122,0.001,101560.0,101550.0,0.66297181]
[1737942454508,0.001,101560.0,101550.0,0.56987158]
[1737942455106,0.3618,101560.0,101550.0,0.56987158]
[1737942455309,0.001,101560.0,101550.0,0.56987158]
[1737942455817,0.001,101560.0,101550.0,0.66297181]
[1737942456011,0.3608,101570.0,101560.0,0.197035]
[1737942457517,0.3608,101570.0,101550.0,0.691045]
[1737942457715,0.557816,101570.0,101550.0,0.34012231]
[1737942457911,0.3608,101560.0,101550.0,0.33912231]
[1737942458116,0.55727618,101570.0,101550.0,0.33912231]
[1737942458420,0.3608,101560.0,101550.0,0.33912231]
[1737942458925,0.55727618,101570.0,101550.0,1.84012231]
[1737942459221,0.36026018,101570.0,101560.0,0.197035]
[1737942460221,0.36026018,101570.0,101560.0,0.23706957]
[1737942460418,0.47709884,101570.0,101560.0,0.23706957]
[1737942461012,0.67411484,101570.0,101560.0,0.05543228]
[1737942461814,0.67411484,101570.0,101560.0,0.05643228]
[1737942462110,0.67411484,101570.0,101560.0,0.05643566]
[1737942462511,0.67411484,101570.0,101560.0,0.05643579]
[1737942462919,0.47709884,101570.0,101560.0,0.05643579]
[1737942463118,0.47709884,101570.0,101560.0,0.25347079]
[1737942464414,0.47709884,101570.0,101560.0,0.22883115]
[1737942464617,0.81380709,101570.0,101560.0,0.03179615]
[1737942464823,1.05582709,101570.0,101560.0,0.03179615]
[1737942465921,0.91613484,101570.0,101560.0,0.03179615]
[1737942466123,0.91613484,101570.0,101560.0,0.22883115]
[1737942466124,0.54089884,101570.0,101560.0,0.22883115]
[1737942466328,0.54089884,101570.0,101560.0,0.22883155]
[1737942466624,0.54089884,101570.0,101560.0,0.28973155]
[1737942467008,0.54089884,101570.0,101560.0,0.4294238]
[1737942467009,0.47709884,101570.0,101560.0,0.4294238]
[1737942467214,0.47709884,101570.0,101560.0,0.5538238]
[1737942468524,0.43904477,101580.0,101560.0,2.4146238]
[1737942468725,0.55600689,101580.0,101560.0,2.27493155]
[1737942469425,0.55600689,101580.0,101570.0,0.197016]
[1737942469727,0.55600689,101580.0,101570.0,0.01539884]
[1737942469922,0.75300389,101580.0,101570.0,0.01539884]
[1737942470127,0.75300389,101580.0,101570.0,0.03079655]
[1737942470428,0.48790689,101580.0,101570.0,0.22781109]
[1737942470629,0.48990689,101580.0,101570.0,0.49180334]
[1737942470926,0.48990689,101580.0,101570.0,0.35211109]
[1737942472024,0.49090689,101580.0,101570.0,0.33671371]
[1737942472223,0.49090689,101580.0,101570.0,0.35211081]
[1737942472827,0.49090689,101580.0,101570.0,0.35242742]
[1737942473416,0.37394477,101580.0,101570.0,0.35242742]
[1737942474528,0.71063402,101580.0,101570.0,0.03111142]
[1737942474729,0.77383402,101580.0,101570.0,0.03111142]
[1737942475620,0.63414177,101580.0,101570.0,0.03111142]
[1737942476618,0.66407261,101580.0,101570.0,0.03111142]
[1737942476818,0.37394477,101580.0,101570.0,0.03111142]
[1737942477332,0.37394477,101580.0,101570.0,0.05574693]
[1737942478121,0.37394477,101580.0,101570.0,0.05574704]
[1737942478429,0.10627561,101580.0,101570.0,0.03111152]
[1737942478630,0.37394477,101580.0,101570.0,0.03111152]
[1737942479327,0.37394477,101580.0,101570.0,0.05574703]
[1737942479532,0.37394477,101580.0,101570.0,0.25276303]
[1737942481819,0.14636804,101590.0,101570.0,0.90280871]
[1737942482023,0.44144115,101620.0,101610.0,0.196938]
[1737942482322,0.29429411,101640.0,101610.0,2.19445439]
[1737942482523,0.11788308,101640.0,101630.0,1.10476168]
[1737942482834,0.04035499,101640.0,101630.0,1.05166355]
[1737942483933,0.04035499,101640.0,101630.0,1.05466355]
[1737942484326,0.03411413,101640.0,101630.0,0.9368972]
[1737942484524,0.03411413,101640.0,101630.0,1.07639353]
[1737942485635,0.19700849,101650.0,101640.0,0.19688]
[1737942485833,0.19700849,101650.0,101640.0,0.0153972]
[1737942486021,0.69730482,101650.0,101640.0,0.0153972]
[1737942486426,0.69730482,101650.0,101630.0,0.67454918]
[1737942486631,0.3608,101640.0,101630.0,0.67454918]
[1737942486935,0.69730482,101650.0,101630.0,1.23224718]
[1737942487128,0.46798749,101650.0,101640.0,0.001]
[1737942487828,0.47800131,101650.0,101640.0,0.001]
[1737942488936,0.47800131,101650.0,101630.0,1.37174351]
[1737942489137,0.47800131,101650.0,101630.0,0.70119433]
[1737942489538,0.47800131,101650.0,101640.0,0.001]
[1737942489733,0.37096131,101650.0,101640.0,0.33737633]
[1737942489930,0.37096131,101650.0,101640.0,0.19788]
[1737942490132,0.37096131,101650.0,101640.0,0.19688]
[1737942491238,0.37096131,101650.0,101630.0,0.3658]
[1737942491538,0.37096131,101650.0,101630.0,0.561696]
[1737942491926,0.37096131,101650.0,101630.0,0.557696]
[1737942492127,0.37096131,101650.0,101640.0,0.001]
[1737942492528,0.01016131,101650.0,101640.0,0.55768]
[1737942492830,0.5522,101660.0,101640.0,0.69717633]
[1737942492831,0.85379002,101660.0,101640.0,0.69717633]
[1737942493028,0.85371002,101660.0,101640.0,0.69717633]
[1737942493229,0.65686802,101660.0,101640.0,0.69817633]
[1737942493426,0.74691102,101660.0,101640.0,0.69817633]
[1737942493831,0.74705851,101660.0,101640.0,0.69817633]
[1737942494440,0.557661,101650.0,101640.0,0.001]
[1737942494633,0.66649357,101660.0,101640.0,0.3618]
[1737942494828,0.30569357,101660.0,101640.0,0.69817433]
[1737942495032,0.30569357,101660.0,101650.0,0.13949633]
[1737942495229,0.19925357,101660.0,101640.0,0.69817433]
[1737942495432,0.56005357,101660.0,101640.0,0.69817433]
[1737942495734,0.19925357,101660.0,101640.0,0.69832182]
[1737942495940,0.39609557,101660.0,101640.0,0.69832182]
[1737942496344,0.39609557,101660.0,101650.0,0.3608]
[1737942496539,0.19925357,101660.0,101650.0,0.33635733]
[1737942496838,0.18941551,101660.0,101650.0,0.33635733]
[1737942497042,0.38625751,101660.0,101650.0,0.13949633]
[1737942497231,0.74705751,101660.0,101640.0,0.00114749]
[1737942497435,0.55021551,101660.0,101640.0,0.14064382]
[1737942497632,0.55021551,101660.0,101650.0,0.33635733]
[1737942497633,0.18941551,101660.0,101650.0,0.33635733]
[1737942498031,0.55021551,101660.0,101650.0,0.196861]
[1737942498236,0.18941551,101660.0,101650.0,0.196861]
[1737942498634,0.19141551,101660.0,101650.0,0.196861]
[1737942498940,0.19241551,101660.0,101650.0,0.557661]
[1737942499240,0.12851551,101660.0,101650.0,0.33635733]
[1737942499636,0.12851551,101660.0,101650.0,0.196861]
[1737942500145,0.12851551,101660.0,101650.0,0.557661]
[1737942500341,0.12851551,101660.0,101650.0,0.196861]
[1737942500837,0.00314749,101660.0,101650.0,0.196861]
[1737942501138,0.00314749,101660.0,101650.0,0.69715733]
[1737942501341,0.00314749,101660.0,101650.0,0.75385733]
[1737942501545,0.00314749,101660.0,101650.0,0.39305733]
[1737942501839,0.00314749,101660.0,101650.0,0.557661]
[1737942502541,0.00314749,101660.0,101650.0,0.196861]
[1737942503538,0.50344382,101660.0,101650.0,0.196861]
[1737942503744,0.70029482,101660.0,101640.0,0.00014749]
[1737942504045,0.3608,101650.0,101640.0,0.19702449]
[1737942504237,0.557661,101650.0,101640.0,0.00014749]
[1737942504437,0.675361,101650.0,101640.0,0.00014749]
[1737942504638,0.76837021,101650.0,101640.0,0.00014749]
[1737942504838,0.40757021,101650.0,101640.0,0.00014749]
[1737942505039,0.40757021,101650.0,101640.0,0.19702749]
[1737942505040,0.21070921,101650.0,101640.0,0.19702749]
[1737942505549,0.1177,101650.0,101640.0,0.19702749]
[1737942505847,0.314561,101650.0,101640.0,0.00114749]
[1737942506232,0.1177,101650.0,101640.0,0.00114749]
[1737942506842,0.1177,101650.0,101640.0,0.19802749]
[1737942508749,0.1177,101650.0,101640.0,0.55882749]
[1737942509148,0.0576,101650.0,101640.0,0.55882749]
[1737942509748,0.36094749,101660.0,101640.0,0.55882749]
[1737942510354,0.36094749,101660.0,101650.0,0.196861]
[1737942510541,0.37096494,101660.0,101650.0,0.196861]
[1737942510840,0.36094749,101660.0,101650.0,0.196861]
[1737942511043,0.36094749,101660.0,101640.0,0.00114749]
[1737942511243,0.00014749,101660.0,101650.0,0.196861]
[1737942511444,0.69729416,101660.0,101640.0,0.00114749]
[1737942511641,0.69716567,101650.0,101640.0,0.00114749]
[1737942511845,0.3608,101650.0,101640.0,0.19802749]
[1737942512143,0.69830116,101660.0,101640.0,0.00114749]
[1737942512447,0.557661,101650.0,101640.0,1.01512397]
[1737942512641,0.557661,101650.0,101640.0,1.01412397]
[1737942512849,0.69729716,101660.0,101640.0,1.21200097]
[1737942513034,0.557661,101650.0,101640.0,1.01512397]
[1737942513237,0.69716567,101650.0,101640.0,1.01412397]
[1737942513451,0.69716567,101650.0,101640.0,1.01512397]
[1737942513748,0.557661,101650.0,101640.0,1.01512397]
[1737942516653,0.56767421,101650.0,101640.0,1.01512397]
[1737942518043,0.56767421,101650.0,101640.0,0.89860731]
[1737942518851,0.557661,101650.0,101640.0,0.89860731]